bitfinex/quotes_BTCUSD_20241021
["timestamp","ask_amount","ask_price","bid_price","bid_amount"]
[1729480712041,0.183748,68751.0,68750.0,0.22145782]
[1729480712263,0.183748,68751.0,68750.0,0.30840925]
[1729480712916,0.182748,68751.0,68750.0,0.30840925]
[1729480713414,0.182748,68751.0,68750.0,0.31240925]
[1729480713642,0.181748,68751.0,68750.0,0.30840925]
[1729480713874,0.181748,68751.0,68750.0,0.31340925]
[1729480714126,0.181748,68751.0,68750.0,0.31240925]
[1729480714346,0.181748,68751.0,68750.0,0.22945782]
[1729480714562,0.181748,68751.0,68750.0,0.22545782]
[1729480715221,0.181748,68751.0,68750.0,0.22145782]
[1729480715459,0.181748,68751.0,68750.0,0.150454]
[1729480715675,0.181748,68751.0,68750.0,0.21818326]
[1729480715906,0.181748,68751.0,68750.0,0.22546095]
[1729480716123,0.181748,68751.0,68750.0,0.23046095]
[1729480716333,0.181748,68751.0,68750.0,0.33415024]
[1729480716549,0.181748,68751.0,68750.0,0.33815024]
[1729480718851,0.181748,68751.0,68750.0,0.28806664]
[1729480719072,0.181748,68751.0,68750.0,0.33815868]
[1729480720204,0.181748,68751.0,68750.0,0.22946939]
[1729480721509,0.181748,68751.0,68750.0,0.14933426]
[1729480721728,0.181748,68751.0,68750.0,0.29478826]
[1729480721987,0.181748,68751.0,68750.0,0.06223624]
[1729480722213,0.181748,68751.0,68750.0,0.2512376]
[1729480722427,0.181748,68751.0,68750.0,0.0977836]
[1729480722648,0.181748,68751.0,68750.0,0.09778769]
[1729480722861,0.181748,68751.0,68750.0,0.24724169]
[1729480723081,0.181748,68751.0,68750.0,0.24324169]
[1729480723317,0.6120301,68751.0,68750.0,0.04923624]
[1729480723531,0.2849,68750.0,68738.0,0.000828]
[1729480723806,0.2849,68750.0,68741.0,0.21563652]
[1729480723807,0.145471,68742.0,68741.0,0.21563652]
[1729480724026,0.29443015,68742.0,68741.0,0.23836187]
[1729480724242,0.29443015,68742.0,68741.0,0.01183013]
[1729480724452,0.48219538,68742.0,68741.0,0.01183013]
[1729480724674,0.47933015,68742.0,68741.0,0.01183013]
[1729480726023,0.48033015,68742.0,68741.0,0.01283013]
[1729480726483,0.48133015,68742.0,68741.0,0.01383013]
[1729480727358,0.48133015,68742.0,68741.0,0.00655005]
[1729480727580,0.48033015,68742.0,68741.0,0.00555005]
[1729480727811,0.48033015,68742.0,68741.0,0.001]
[1729480728042,0.48133015,68742.0,68741.0,0.00655015]
[1729480728498,0.47933015,68742.0,68741.0,0.00455015]
[1729480729174,0.48033015,68742.0,68741.0,0.00555015]
[1729480729396,0.48133015,68742.0,68741.0,0.00655015]
[1729480730059,0.48033015,68742.0,68741.0,0.00555015]
[1729480730494,0.48133015,68742.0,68741.0,0.00655015]
[1729480730705,0.48133015,68742.0,68741.0,0.00555015]
[1729480730706,0.48033015,68742.0,68741.0,0.00555015]
[1729480731166,0.48133015,68742.0,68741.0,0.00655015]
[1729480731614,0.47933015,68742.0,68741.0,0.00455015]
[1729480731885,0.48033015,68742.0,68741.0,0.00555015]
[1729480732100,0.48133015,68742.0,68741.0,0.00655015]
[1729480732319,0.48033015,68742.0,68741.0,0.00455015]
[1729480732760,0.48033015,68742.0,68741.0,0.00655015]
[1729480732761,0.1879,68742.0,68741.0,0.00655015]
[1729480732977,0.0849,68742.0,68741.0,0.15602315]
[1729480733216,0.0859,68742.0,68741.0,0.16430307]
[1729480733456,0.0859,68742.0,68741.0,0.17517177]
[1729480733651,0.0859,68742.0,68741.0,0.17417177]
[1729480733652,0.0839,68742.0,68741.0,0.17417177]
[1729480733877,0.001,68742.0,68741.0,0.1623417]
[1729480734091,0.50651552,68758.0,68741.0,0.1623417]
[1729480734092,0.0759,68752.0,68750.0,0.005]
[1729480734313,0.21728452,68751.0,68750.0,0.00954944]
[1729480734553,0.001648,68751.0,68750.0,0.16228252]
[1729480734788,0.001648,68751.0,68750.0,0.01682852]
[1729480735009,0.001648,68751.0,68750.0,0.16228252]
[1729480735703,0.002648,68751.0,68750.0,0.16228252]
[1729480735931,0.001648,68751.0,68750.0,0.17315028]
[1729480736171,0.002648,68751.0,68750.0,0.1822488]
[1729480737302,0.001648,68751.0,68750.0,0.1822488]
[1729480739742,0.001648,68751.0,68750.0,0.19963711]
[1729480739964,0.001648,68751.0,68750.0,0.20263711]
[1729480740181,0.001648,68751.0,68750.0,0.17871184]
[1729480740400,0.001648,68751.0,68750.0,0.19963558]
[1729480740615,0.001648,68751.0,68750.0,0.18224614]
[1729480740821,0.001648,68751.0,68750.0,0.19963558]
[1729480741041,0.001648,68751.0,68750.0,0.18224614]
[1729480741272,0.001648,68751.0,68750.0,0.20263558]
[1729480741724,0.001648,68751.0,68750.0,0.19963558]
[1729480741949,0.001648,68751.0,68750.0,0.18224614]
[1729480742179,0.001648,68751.0,68750.0,0.18824614]
[1729480742638,0.001648,68751.0,68750.0,0.0228684]
[1729480742860,0.23126523,68751.0,68750.0,0.02869581]
[1729480743081,0.23126523,68751.0,68750.0,0.021549]
[1729480743310,0.23126523,68751.0,68750.0,0.015549]
[1729480743545,0.23126523,68751.0,68750.0,0.009549]
[1729480743763,0.23126523,68751.0,68750.0,0.015549]
[1729480743975,0.23126523,68751.0,68750.0,0.021549]
[1729480744186,0.23126523,68751.0,68750.0,0.015549]
[1729480744638,0.23226523,68751.0,68750.0,0.015549]
[1729480745143,0.23126523,68751.0,68750.0,0.015549]
[1729480745353,0.23226523,68751.0,68750.0,0.009549]
[1729480745782,0.23326523,68751.0,68750.0,0.01682805]
[1729480746001,0.23226523,68751.0,68750.0,0.01682804]
[1729480746245,0.23326523,68751.0,68750.0,0.01682804]
[1729480746457,0.23326523,68751.0,68750.0,0.005]
[1729480746672,0.23326523,68751.0,68750.0,0.01227903]
[1729480746886,0.23326523,68751.0,68750.0,0.01682842]
[1729480749110,0.23326523,68751.0,68750.0,0.01182842]
[1729480749321,0.23326523,68751.0,68750.0,0.00454939]
[1729480751082,0.23326523,68751.0,68750.0,0.01682863]
[1729480751083,0.08781323,68751.0,68750.0,0.01682863]
[1729480751300,0.23326523,68751.0,68750.0,0.01682863]
[1729480753373,0.38222438,68751.0,68750.0,0.00454939]
[1729480753601,0.38222438,68751.0,68741.0,0.02241742]
[1729480753602,0.145463,68746.0,68745.0,0.005]
[1729480753824,0.084948,68751.0,68745.0,0.01682926]
[1729480754057,0.145463,68746.0,68745.0,0.005]
[1729480754295,0.145463,68746.0,68745.0,0.02771594]
[1729480755979,0.14832823,68746.0,68745.0,0.02771594]
[1729480756233,0.14932823,68746.0,68745.0,0.02771582]
[1729480756486,0.00286523,68746.0,68745.0,0.02771582]
[1729480756728,0.001,68746.0,68745.0,0.02771582]
[1729480756973,0.146463,68746.0,68745.0,0.02771582]
[1729480757206,0.146463,68746.0,68745.0,0.02771807]
[1729480757207,0.001,68746.0,68745.0,0.02771807]
[1729480757425,0.146463,68746.0,68745.0,0.03681729]
[1729480757651,0.145463,68746.0,68745.0,0.03681729]
[1729480757887,0.146463,68746.0,68745.0,0.03681729]
[1729480758133,0.145463,68746.0,68745.0,0.03681729]
[1729480758370,0.146463,68746.0,68745.0,0.03681729]
[1729480758586,0.147463,68746.0,68745.0,0.03681729]
[1729480758823,0.002,68746.0,68745.0,0.03681729]
[1729480759342,0.147463,68746.0,68745.0,0.03681729]
[1729480759583,0.147463,68746.0,68745.0,0.02771807]
[1729480760806,0.147463,68746.0,68745.0,0.02771846]
[1729480762189,0.149119,68746.0,68745.0,0.02771846]
[1729480764264,0.149119,68746.0,68745.0,0.02772716]
[1729480767472,0.149119,68746.0,68745.0,0.03682648]
[1729480768171,0.15198423,68746.0,68745.0,0.02772716]
[1729480768659,0.15198423,68746.0,68745.0,0.02272716]
[1729480769584,0.15198423,68746.0,68745.0,0.03182659]
[1729480770481,0.149119,68746.0,68745.0,0.03182659]
[1729480771178,0.149119,68746.0,68745.0,0.03682659]
[1729480771399,0.149119,68746.0,68745.0,0.0181774]
[1729480771618,0.149119,68746.0,68745.0,0.0542749]
[1729480773086,0.48317815,68746.0,68745.0,0.0492749]
[1729480773317,0.48317815,68746.0,68745.0,0.02272695]
[1729480773546,0.48317815,68746.0,68745.0,0.02273841]
[1729480773780,0.48317815,68746.0,68745.0,0.01182988]
[1729480774006,0.48317815,68746.0,68745.0,0.00454968]
[1729480774453,0.58317815,68746.0,68745.0,0.00454968]
[1729480775193,0.58317815,68746.0,68738.0,0.000828]
[1729480775194,0.290938,68743.0,68739.0,0.00910039]
[1729480775433,0.145473,68741.0,68740.0,0.0118305]
[1729480775674,0.145473,68741.0,68740.0,0.02273854]
[1729480777050,0.145473,68741.0,68740.0,0.02273594]
[1729480779121,0.145473,68741.0,68740.0,0.03183612]
[1729480779356,0.146473,68741.0,68740.0,0.03183612]
[1729480779818,0.145473,68741.0,68740.0,0.03183612]
[1729480780337,0.145473,68741.0,68740.0,0.02273594]
[1729480781039,0.146473,68741.0,68740.0,0.02273594]
[1729480781538,0.001,68741.0,68740.0,0.02773594]
[1729480781771,0.001,68741.0,68740.0,0.03683628]
[1729480782000,0.00586523,68741.0,68740.0,0.03683628]
[1729480782228,0.00486523,68741.0,68740.0,0.03683628]
[1729480782496,0.00486523,68741.0,68740.0,0.05428165]
[1729480782736,0.00586523,68741.0,68740.0,0.05428165]
[1729480782956,0.00586523,68741.0,68740.0,0.05428078]
[1729480783185,0.00286523,68741.0,68740.0,0.05428078]
[1729480783414,0.00386523,68741.0,68740.0,0.05428078]
[1729480784537,0.147473,68741.0,68740.0,0.05428078]
[1729480784750,0.147473,68741.0,68740.0,0.03683541]
[1729480784989,0.146473,68741.0,68740.0,0.03683541]
[1729480785200,0.147473,68741.0,68740.0,0.03683541]
[1729480785414,0.146473,68741.0,68740.0,0.02773542]
[1729480785840,0.146473,68741.0,68740.0,0.03683556]
[1729480786053,0.147473,68741.0,68740.0,0.03683556]
[1729480786517,0.147473,68741.0,68740.0,0.05428181]
[1729480786759,0.147473,68741.0,68740.0,0.02592967]
[1729480786995,0.147473,68741.0,68740.0,0.01682981]
[1729480787208,0.147473,68741.0,68740.0,0.07172582]
[1729480787424,0.147473,68741.0,68740.0,0.08262966]
[1729480787639,0.146473,68741.0,68740.0,0.08262966]
[1729480787867,0.146473,68741.0,68740.0,0.06170003]
[1729480787868,0.145473,68741.0,68740.0,0.06170003]
[1729480788085,0.002,68741.0,68740.0,0.08262971]
[1729480788514,0.00486523,68741.0,68740.0,0.08262971]
[1729480788734,0.00486523,68741.0,68740.0,0.12620556]
[1729480789188,0.00486523,68741.0,68740.0,0.05427967]
[1729480789406,0.00486523,68741.0,68740.0,0.09788344]
[1729480789620,0.15033823,68741.0,68740.0,0.09788344]
[1729480789833,0.00486523,68741.0,68740.0,0.09788344]
[1729480790093,0.002,68741.0,68740.0,0.05427967]
[1729480790320,0.002,68741.0,68740.0,0.03334999]
[1729480790536,0.002,68741.0,68740.0,0.11968702]
[1729480790972,0.00386523,68741.0,68740.0,0.11968702]
[1729480791194,0.00286523,68741.0,68740.0,0.11968702]
[1729480791684,0.145471,68742.0,68740.0,0.11968702]
[1729480791898,0.14547,68743.0,68741.0,0.05428137]
[1729480792116,0.14547,68743.0,68742.0,0.09288919]
[1729480793423,0.001656,68746.0,68744.0,0.005]
[1729480793645,0.001656,68746.0,68745.0,0.2433586]
[1729480793907,0.001656,68746.0,68745.0,0.40425582]
[1729480794125,0.001656,68746.0,68745.0,0.346812]
[1729480794355,0.001656,68746.0,68745.0,0.70701933]
[1729480794592,0.001656,68746.0,68745.0,0.57820606]
[1729480795028,0.001656,68746.0,68745.0,0.58420606]
[1729480795261,0.001656,68746.0,68745.0,0.58220606]
[1729480795476,0.001656,68746.0,68745.0,0.57620606]
[1729480795688,0.001656,68746.0,68745.0,0.58920606]
[1729480795910,0.001656,68746.0,68745.0,0.57620606]
[1729480796362,0.001656,68746.0,68745.0,0.60472232]
[1729480796571,0.001656,68746.0,68745.0,0.73542097]
[1729480797433,0.001656,68746.0,68745.0,0.59779692]
[1729480797650,0.001656,68746.0,68745.0,0.52804791]
[1729480797910,0.001656,68746.0,68745.0,0.73728778]
[1729480798119,0.001656,68746.0,68745.0,0.75128777]
[1729480798333,0.001656,68746.0,68745.0,0.57811219]
[1729480798542,0.001656,68746.0,68745.0,0.73725173]
[1729480798757,0.001656,68746.0,68745.0,0.74925173]
[1729480798976,0.001656,68746.0,68745.0,0.73525173]
[1729480799190,0.001656,68746.0,68745.0,0.73525168]
[1729480799641,0.001656,68746.0,68745.0,0.73474558]
[1729480799856,0.001656,68746.0,68745.0,0.61861829]
[1729480800073,0.001656,68746.0,68745.0,0.58234511]
[1729480800510,0.001656,68746.0,68745.0,0.56834511]
[1729480800743,0.001656,68746.0,68745.0,0.2249972]
[1729480801022,0.001656,68746.0,68745.0,0.21368627]
[1729480801241,0.001656,68746.0,68745.0,0.29976235]
[1729480801483,0.001656,68746.0,68745.0,0.31376235]
[1729480801973,0.001656,68746.0,68745.0,0.4624872]
[1729480802212,0.001656,68746.0,68745.0,0.47878842]
[1729480802471,0.001656,68746.0,68745.0,0.38196043]
[1729480802923,0.001656,68746.0,68745.0,0.36564542]
[1729480803151,0.001656,68746.0,68745.0,0.33734822]
[1729480803387,0.001656,68746.0,68745.0,0.35362031]
[1729480803846,0.001656,68746.0,68745.0,0.35862031]
[1729480804141,0.001656,68746.0,68745.0,0.46674445]
[1729480804394,0.001656,68746.0,68745.0,0.5532552]
[1729480804629,0.001656,68746.0,68745.0,0.55594131]
[1729480804866,0.001656,68746.0,68745.0,0.54394131]
[1729480805096,0.001656,68746.0,68745.0,0.55394131]
[1729480805306,0.001656,68746.0,68745.0,0.57194131]
[1729480805524,0.001656,68746.0,68745.0,0.56694131]
[1729480806002,0.001656,68746.0,68745.0,0.57394131]
[1729480806237,0.001656,68746.0,68745.0,0.61018757]
[1729480806722,0.001656,68746.0,68745.0,0.58094131]
[1729480806947,0.001656,68746.0,68745.0,0.61018757]
[1729480807169,0.001656,68746.0,68745.0,0.54566922]
[1729480807387,0.001656,68746.0,68745.0,0.58693036]
[1729480807606,0.001656,68746.0,68745.0,0.56693036]
[1729480807828,0.001656,68746.0,68745.0,0.56493036]
[1729480808082,0.001656,68746.0,68745.0,0.56693036]
[1729480808535,0.001656,68746.0,68745.0,0.54193036]
[1729480808975,0.001656,68746.0,68745.0,0.55193036]
[1729480809418,0.001656,68746.0,68745.0,0.55393036]
[1729480809895,0.001656,68746.0,68745.0,0.56393036]
[1729480810374,0.001656,68746.0,68745.0,0.58693036]
[1729480810680,0.001656,68746.0,68745.0,0.58692777]
[1729480810893,0.001656,68746.0,68745.0,0.60141995]
[1729480811144,0.001656,68746.0,68745.0,0.62315822]
[1729480811370,0.001656,68746.0,68745.0,0.60141995]
[1729480811602,0.001656,68746.0,68745.0,0.62315822]
[1729480811831,0.001656,68746.0,68745.0,0.60141995]
[1729480812096,0.001656,68746.0,68745.0,0.58692777]
[1729480812539,0.001656,68746.0,68745.0,0.62315822]
[1729480812754,0.001656,68746.0,68745.0,0.60141995]
[1729480812987,0.001656,68746.0,68745.0,0.60866604]
[1729480813215,0.001656,68746.0,68745.0,0.70866604]
[1729480813441,0.001648,68751.0,68750.0,0.361654]
[1729480813676,0.001648,68751.0,68750.0,0.58153404]
[1729480814362,0.001648,68751.0,68750.0,0.68152472]
[1729480814814,0.001648,68751.0,68750.0,0.68370702]
[1729480815272,0.001648,68751.0,68750.0,0.82700044]
[1729480816588,0.001648,68751.0,68750.0,0.71070702]
[1729480816804,0.001648,68751.0,68750.0,0.84100044]
[1729480817304,0.001648,68751.0,68750.0,0.71070702]
[1729480817746,0.001648,68751.0,68750.0,0.69886014]
[1729480817957,0.001648,68751.0,68750.0,0.71068375]
[1729480818645,0.001648,68751.0,68750.0,0.72696138]
[1729480818892,0.21728652,68767.0,68766.0,0.15542]
[1729480819126,0.21728652,68767.0,68766.0,0.36354153]
[1729480819354,0.21728652,68767.0,68766.0,0.3678562]
[1729480819649,0.21728652,68767.0,68766.0,0.3908562]
[1729480819650,0.00165,68767.0,68766.0,0.3908562]
[1729480819868,0.00165,68767.0,68766.0,0.38654153]
[1729480820094,0.00165,68767.0,68766.0,0.48782262]
[1729480820332,0.00165,68767.0,68766.0,0.50102546]
[1729480820559,0.00165,68767.0,68766.0,0.59882262]
[1729480820783,0.00165,68767.0,68766.0,0.51926745]
[1729480821228,0.00165,68767.0,68766.0,0.48734876]
[1729480821462,0.00165,68767.0,68766.0,0.52424583]
[1729480822171,0.00165,68767.0,68766.0,0.64563168]
[1729480823575,0.00165,68767.0,68766.0,0.51024583]
[1729480823794,0.00165,68767.0,68766.0,0.53824583]
[1729480824007,0.00165,68767.0,68766.0,0.52424583]
[1729480824918,0.00165,68767.0,68766.0,0.48829236]
[1729480825166,0.00165,68767.0,68766.0,0.54016954]
[1729480826819,0.00165,68767.0,68766.0,0.52616954]
[1729480827056,0.00165,68767.0,68766.0,0.55416954]
[1729480827580,0.00165,68767.0,68766.0,0.63576954]
[1729480827786,0.00165,68767.0,68766.0,0.73356954]
[1729480827997,0.00165,68767.0,68766.0,0.73356979]
[1729480828415,0.001648,68773.0,68772.0,0.190408]
[1729480828615,0.001648,68773.0,68772.0,0.51876715]
[1729480828824,0.001648,68773.0,68772.0,0.55052363]
[1729480829037,0.001648,68773.0,68772.0,0.65877639]
[1729480829243,0.001648,68773.0,68772.0,0.6587765]
[1729480829445,0.001648,68773.0,68772.0,0.55052374]
[1729480830526,0.001648,68773.0,68772.0,0.56452374]
[1729480830713,0.001648,68773.0,68772.0,0.55052374]
[1729480831177,0.001648,68773.0,68772.0,0.57852374]
[1729480831385,0.001648,68773.0,68772.0,0.39912374]
[1729480831608,0.001648,68773.0,68772.0,0.50735467]
[1729480832039,0.001648,68773.0,68772.0,0.5150619]
[1729480832250,0.001648,68773.0,68772.0,0.51506226]
[1729480832701,0.001648,68773.0,68772.0,0.50106226]
[1729480833182,0.001648,68773.0,68772.0,0.51506226]
[1729480833391,0.001648,68773.0,68772.0,0.48706226]
[1729480833607,0.001648,68773.0,68772.0,0.39283133]
[1729480833823,0.001648,68773.0,68772.0,0.40683133]
[1729480834266,0.001648,68773.0,68772.0,0.39283133]
[1729480834699,0.001648,68773.0,68772.0,0.40683133]
[1729480835855,0.001648,68773.0,68772.0,0.38198704]
[1729480836106,0.001648,68773.0,68772.0,0.36798704]
[1729480836346,0.001648,68773.0,68772.0,0.4126511]
[1729480838741,0.001648,68773.0,68772.0,0.62828762]
[1729480839003,0.001648,68779.0,68776.0,0.045]
[1729480839213,0.001648,68779.0,68776.0,0.47111787]
[1729480839431,0.001648,68779.0,68776.0,0.46054953]
[1729480839650,0.001648,68779.0,68776.0,0.47236835]
[1729480839870,0.001648,68779.0,68776.0,0.48322326]
[1729480840091,0.001648,68779.0,68776.0,0.47867753]
[1729480840322,0.001648,68779.0,68776.0,0.50667753]
[1729480840539,0.001648,68779.0,68776.0,0.58517753]
[1729480840791,0.001648,68779.0,68776.0,0.55717753]
[1729480841016,0.001648,68779.0,68776.0,0.57117753]
[1729480841486,0.001648,68779.0,68776.0,0.86178994]
[1729480842187,0.001648,68779.0,68776.0,0.87809439]
[1729480842405,0.001648,68779.0,68777.0,0.290397]
[1729480842629,0.001648,68779.0,68777.0,0.47112135]
[1729480842916,0.001648,68779.0,68777.0,0.47866533]
[1729480843359,0.18786043,68786.0,68785.0,0.19038]
[1729480843573,0.001648,68790.0,68785.0,0.19038]
[1729480843574,0.001648,68790.0,68788.0,0.188374]
[1729480843791,0.001648,68790.0,68788.0,0.45573113]
[1729480844005,0.001648,68790.0,68788.0,0.4632468]
[1729480844446,0.001648,68790.0,68788.0,0.45415537]
[1729480844920,0.001648,68790.0,68788.0,0.45615537]
[1729480845149,0.001648,68790.0,68788.0,0.45415537]
[1729480845377,0.001648,68790.0,68788.0,0.36752259]
[1729480845594,0.001648,68790.0,68788.0,0.37552259]
[1729480845817,0.001648,68790.0,68788.0,0.45415537]
[1729480846041,0.001648,68790.0,68788.0,0.37552259]
[1729480846264,0.001648,68790.0,68788.0,0.48860268]
[1729480846505,0.001648,68790.0,68788.0,0.48860223]
[1729480846768,0.001648,68790.0,68788.0,0.4886184]
[1729480847259,0.001648,68790.0,68788.0,0.39398966]
[1729480847485,0.001648,68790.0,68788.0,0.4946184]
[1729480848143,0.001648,68790.0,68788.0,0.48374732]
[1729480848372,0.001648,68790.0,68788.0,0.47574732]
[1729480848612,0.001648,68790.0,68788.0,0.50062076]
[1729480848831,0.001648,68790.0,68788.0,0.48662076]
[1729480849048,0.001648,68790.0,68788.0,0.47262076]
[1729480849335,0.001648,68790.0,68788.0,0.41399202]
[1729480849553,0.001648,68790.0,68788.0,0.5064676]
[1729480849995,0.001648,68790.0,68788.0,0.50646701]
[1729480850219,0.001648,68790.0,68788.0,0.41980802]
[1729480851345,0.001648,68790.0,68788.0,0.52816913]
[1729480851563,0.001648,68790.0,68788.0,0.41980802]
[1729480852245,0.001648,68790.0,68788.0,0.52816913]
[1729480852700,0.001648,68790.0,68788.0,0.41980802]
[1729480853169,0.001648,68790.0,68788.0,0.52816913]
[1729480853386,0.001648,68790.0,68788.0,0.40580802]
[1729480853605,0.001648,68790.0,68788.0,0.41980802]
[1729480855155,0.001648,68790.0,68788.0,0.49180802]
[1729480855372,0.001648,68790.0,68788.0,0.51980802]
[1729480855858,0.001648,68790.0,68788.0,0.50580802]
[1729480856077,0.001648,68790.0,68788.0,0.50480802]
[1729480856298,0.001648,68790.0,68788.0,0.51680802]
[1729480857205,0.001648,68790.0,68788.0,0.63502294]
[1729480857439,0.001648,68790.0,68788.0,0.51680762]
[1729480857889,0.001648,68790.0,68788.0,0.51480762]
[1729480858362,0.009148,68795.0,68790.0,0.165369]
[1729480858598,0.009148,68795.0,68790.0,0.3600196]
[1729480858834,0.009148,68795.0,68790.0,0.3675207]
[1729480859511,0.009148,68795.0,68790.0,0.3775207]
[1729480859727,0.009148,68795.0,68790.0,0.3885207]
[1729480862181,0.009148,68795.0,68790.0,0.3805207]
[1729480862400,0.009148,68795.0,68790.0,0.49986662]
[1729480862834,0.009148,68795.0,68790.0,0.52486662]
[1729480863286,0.009148,68795.0,68790.0,0.38164737]
[1729480863561,0.009148,68795.0,68790.0,0.39253381]
[1729480863997,0.009148,68795.0,68790.0,0.38353381]
[1729480864216,0.009148,68795.0,68790.0,0.39453381]
[1729480865089,0.009148,68795.0,68790.0,0.39653381]
[1729480865309,0.009148,68795.0,68790.0,0.39453381]
[1729480865529,0.009148,68795.0,68790.0,0.39653381]
[1729480867119,0.009148,68795.0,68790.0,0.39453381]
[1729480867365,0.095448,68791.0,68790.0,0.33812027]
[1729480867591,0.175248,68791.0,68790.0,0.06220566]
[1729480867822,0.320615,68791.0,68790.0,0.07673663]
[1729480868049,0.320615,68791.0,68790.0,0.05720566]
[1729480868273,0.320615,68791.0,68790.0,0.04420566]
[1729480868503,0.46957415,68791.0,68790.0,0.01543187]
[1729480868740,0.46957415,68791.0,68790.0,0.01754543]
[1729480868960,0.46957415,68791.0,68790.0,0.019]
[1729480869214,0.46957415,68791.0,68790.0,0.013]
[1729480870554,0.46957415,68791.0,68789.0,0.000827]
[1729480870555,0.145369,68790.0,68789.0,0.000827]
[1729480870781,0.33093423,68790.0,68789.0,0.000827]
[1729480870992,0.328069,68790.0,68789.0,0.000827]
[1729480871867,0.328069,68790.0,68789.0,0.002827]
[1729480871868,0.331069,68790.0,68789.0,0.002827]
[1729480877350,0.330069,68790.0,68789.0,0.001827]
[1729480877642,0.330069,68790.0,68789.0,0.002827]
[1729480877859,0.328069,68790.0,68789.0,0.001827]
[1729480878072,0.1827,68790.0,68789.0,0.001827]
[1729480878311,0.18656523,68790.0,68789.0,0.002827]
[1729480878739,0.18656523,68790.0,68789.0,0.15578267]
[1729480878973,0.1827,68790.0,68789.0,0.15478267]
[1729480879186,0.1827,68790.0,68789.0,0.00841067]
[1729480879409,0.1837,68790.0,68789.0,0.00841067]
[1729480880315,0.185354,68790.0,68789.0,0.00841067]
[1729480880982,0.185354,68790.0,68789.0,0.15878267]
[1729480881207,0.002654,68790.0,68789.0,0.16332934]
[1729480881479,0.002654,68790.0,68789.0,0.16332905]
[1729480881703,0.002654,68790.0,68789.0,0.17418488]
[1729480881925,0.002654,68790.0,68789.0,0.1814591]
[1729480882138,0.001654,68790.0,68789.0,0.1814591]
[1729480882356,0.001654,68790.0,68789.0,0.1904591]
[1729480882694,0.001654,68790.0,68789.0,0.1814591]
[1729480883136,0.001654,68790.0,68789.0,0.1894591]
[1729480883814,0.001654,68790.0,68789.0,0.1984591]
[1729480884268,0.001654,68790.0,68789.0,0.1894591]
[1729480884518,0.001654,68790.0,68789.0,0.18945889]
[1729480884765,0.001654,68790.0,68789.0,0.19745889]
[1729480884970,0.001654,68790.0,68789.0,0.18145889]
[1729480885194,0.001654,68790.0,68789.0,0.18545889]
[1729480885426,0.001654,68790.0,68789.0,0.18945889]
[1729480886546,0.001654,68790.0,68789.0,0.18545889]
[1729480886766,0.001654,68790.0,68789.0,0.18445889]
[1729480886988,0.001654,68790.0,68789.0,0.18845889]
[1729480887455,0.001654,68790.0,68789.0,0.18445889]
[1729480887910,0.001654,68790.0,68789.0,0.18745889]
[1729480888131,0.001654,68790.0,68789.0,0.18745902]
[1729480891173,0.001654,68790.0,68789.0,0.18445902]
[1729480891387,0.001654,68790.0,68789.0,0.24829131]
[1729480891612,0.001654,68790.0,68789.0,0.20484057]
[1729480891833,0.001654,68790.0,68789.0,0.19884057]
[1729480892060,0.001654,68790.0,68789.0,0.42205316]
[1729480892276,0.001654,68790.0,68789.0,0.43970121]
[1729480892520,0.001654,68790.0,68789.0,0.35479972]
[1729480892754,0.001654,68790.0,68789.0,0.46542659]
[1729480893003,0.001654,68790.0,68789.0,0.46342659]
[1729480893270,0.001654,68790.0,68789.0,0.46442659]
[1729480893486,0.001654,68790.0,68789.0,0.46742218]
[1729480893949,0.001654,68790.0,68789.0,0.46442218]
[1729480894231,0.001654,68790.0,68789.0,0.46542218]
[1729480895433,0.001654,68790.0,68789.0,0.46544295]
[1729480897276,0.001654,68790.0,68789.0,0.46344295]
[1729480898432,0.001654,68790.0,68789.0,0.46344654]
[1729480901454,0.001654,68790.0,68789.0,0.46926354]
[1729480902635,0.001654,68790.0,68789.0,0.46926364]
[1729480902885,0.001654,68790.0,68789.0,0.46471798]
[1729480903100,0.001654,68790.0,68789.0,0.36063759]
[1729480903324,0.001654,68790.0,68789.0,0.44755439]
[1729480905274,0.001654,68790.0,68789.0,0.36063759]
[1729480906381,0.001654,68790.0,68789.0,0.36066088]
[1729480907544,0.001654,68790.0,68789.0,0.35566088]
[1729480907755,0.001654,68790.0,68789.0,0.24435209]
[1729480907974,0.001654,68790.0,68789.0,0.24858184]
[1729480908199,0.001654,68790.0,68789.0,0.23253324]
[1729480908431,0.001654,68790.0,68789.0,0.22030018]
[1729480908642,0.001654,68790.0,68789.0,0.24859703]
[1729480908866,0.001654,68790.0,68789.0,0.2051298]
[1729480909079,0.001654,68790.0,68789.0,0.20089915]
[1729480909301,0.001654,68790.0,68789.0,0.24859703]
[1729480909540,0.001654,68790.0,68789.0,0.20089915]
[1729480910227,0.001654,68790.0,68789.0,0.24859703]
[1729480910673,0.001654,68790.0,68789.0,0.24859864]
[1729480910894,0.001654,68790.0,68789.0,0.24336658]
[1729480911111,0.001654,68790.0,68789.0,0.24659883]
[1729480911353,0.001654,68790.0,68789.0,0.24336658]
[1729480911784,0.001654,68790.0,68789.0,0.19889935]
[1729480912032,0.002654,68790.0,68789.0,0.19889935]
[1729480912679,0.002654,68790.0,68789.0,0.20313223]
[1729480912900,0.002654,68790.0,68789.0,0.24238409]
[1729480913117,0.002654,68790.0,68789.0,0.24238401]
[1729480913384,0.002654,68790.0,68789.0,0.19889935]
[1729480913634,0.002654,68790.0,68789.0,0.20313227]
[1729480913843,0.002654,68790.0,68789.0,0.19889944]
[1729480914291,0.002654,68790.0,68789.0,0.24238875]
[1729480914686,0.002654,68790.0,68789.0,0.19889944]
[1729480915190,0.002654,68790.0,68789.0,0.19891923]
[1729480915397,0.001654,68790.0,68789.0,0.19891923]
[1729480915625,0.001654,68790.0,68789.0,0.24540854]
[1729480916106,0.001654,68790.0,68789.0,0.20191923]
[1729480916323,0.001654,68790.0,68789.0,0.24540854]
[1729480916537,0.001654,68790.0,68789.0,0.24840854]
[1729480916973,0.001654,68790.0,68789.0,0.24540854]
[1729480917195,0.001654,68790.0,68789.0,0.20991937]
[1729480917412,0.001654,68790.0,68789.0,0.20992144]
[1729480917639,0.001654,68790.0,68789.0,0.24542835]
[1729480917855,0.001654,68790.0,68789.0,0.20192144]
[1729480918081,0.001654,68790.0,68789.0,0.24542816]
[1729480918300,0.001654,68790.0,68789.0,0.19892144]
[1729480918525,0.001654,68790.0,68789.0,0.20492144]